bitfinex/quotes_SOLUSD_20240716
["timestamp","ask_amount","ask_price","bid_price","bid_amount"]
[1721114182840,16.3513,155.68,155.65,20.0]
[1721114183033,16.3513,155.68,155.66,1.28272342]
[1721114183416,6.6273,155.7,155.67,38.05]
[1721114183632,6.6273,155.7,155.68,21.28437763]
[1721114184114,16.0875,155.72,155.68,20.0]
[1721114185950,16.0875,155.72,155.69,0.98120113]
[1721114188440,6.5806,155.75,155.7,38.05]
[1721114188643,15.357,155.76,155.73,38.05]
[1721114188813,15.357,155.76,155.74,20.0]
[1721114189216,15.357,155.76,155.74,20.97893292]
[1721114189846,15.357,155.76,155.74,20.0]
[1721114191052,15.357,155.76,155.72,20.0]
[1721114192023,0.79396752,155.75,155.71,38.05]
[1721114192253,0.79396752,155.75,155.67,38.05]
[1721114192549,6.5882,155.74,155.63,38.05]
[1721114192725,0.79396752,155.73,155.63,38.05]
[1721114192928,16.411,155.72,155.63,38.05]
[1721114193141,0.79396752,155.71,155.63,38.05]
[1721114193524,7.23336752,155.7,155.57,7.2938259]
[1721114193719,16.1741,155.69,155.59,38.05]
[1721114193933,0.79396752,155.68,155.59,38.05]
[1721114194351,0.79396752,155.68,155.56,6.68990898]
[1721114194527,6.4394,155.67,155.56,6.68990898]
[1721114194729,0.79396752,155.66,155.54,42.86]
[1721114195750,0.79396752,155.66,155.54,52.86]
[1721114195929,0.79396752,155.66,155.55,20.0]
[1721114196123,0.79396752,155.66,155.54,42.86]
[1721114197148,7.23336752,155.67,155.57,10.0]
[1721114197349,7.23336752,155.67,155.58,1.28487827]
[1721114197676,7.23336752,155.67,155.58,21.28487827]
[1721114197958,7.23336752,155.67,155.58,20.0]
[1721114198253,0.79396752,155.66,155.58,20.0]
[1721114198458,7.23336752,155.67,155.58,21.28494751]
[1721114198639,6.4394,155.67,155.58,21.28494751]
[1721114199020,0.79396752,155.66,155.58,21.28494751]
[1721114199444,6.4394,155.67,155.58,21.28494751]
[1721114200856,6.4394,155.67,155.6,42.86]
[1721114201033,6.4394,155.67,155.61,21.28467471]
[1721114202229,6.4394,155.67,155.61,31.28467471]
[1721114202968,6.4394,155.67,155.61,21.28467471]
[1721114203555,6.4394,155.67,155.61,31.28467471]
[1721114203734,6.4394,155.67,155.61,21.28467471]
[1721114204547,6.4394,155.67,155.61,31.28467471]
[1721114205148,6.4394,155.67,155.61,21.28467471]
[1721114205748,6.4394,155.67,155.61,31.28467471]
[1721114206258,6.4394,155.67,155.61,20.0]
[1721114206626,6.4394,155.67,155.61,30.0]
[1721114206852,6.4394,155.67,155.62,1.28425788]
[1721114209370,6.4394,155.67,155.57,16.67090296]
[1721114209371,0.79396752,155.66,155.57,6.67090296]
[1721114210051,16.1597,155.65,155.56,42.86]
[1721114210247,16.1597,155.65,155.53,16.1741]
[1721114210248,0.79396752,155.64,155.53,16.1741]
[1721114210452,0.79396752,155.64,155.52,42.86]
[1721114210649,0.79396752,155.64,155.54,6.66693718]
[1721114210847,6.4363,155.62,155.51,16.1597]
[1721114211077,0.79396752,155.61,155.5,42.86]
[1721114211368,6.4363,155.58,155.47,15.6695]
[1721114211540,0.79396752,155.57,155.46,42.86]
[1721114211957,0.79396752,155.57,155.46,49.53009114]
[1721114212347,0.79396752,155.57,155.46,42.86]
[1721114212545,0.79396752,155.57,155.43,42.86]
[1721114212947,0.79396752,155.57,155.44,6.67064855]
[1721114213171,6.2722,155.56,155.43,42.86]
[1721114213354,16.05596752,155.55,155.39,17.12796022]
[1721114213662,16.05596752,155.55,155.41,10.0]
[1721114213663,0.79396752,155.54,155.41,10.0]
[1721114213873,15.262,155.55,155.43,52.86]
[1721114214168,0.79396752,155.54,155.43,42.86]
[1721114214553,0.79396752,155.54,155.43,52.86]
[1721114215547,0.79396752,155.54,155.44,20.0]
[1721114217849,0.79396752,155.54,155.45,1.28621746]
[1721114219058,0.79396752,155.54,155.44,20.0]
[1721114219455,6.2894,155.53,155.44,20.0]
[1721114219655,0.79396752,155.52,155.45,1.28621854]
[1721114220254,6.2894,155.53,155.45,1.28621854]
[1721114220864,6.2894,155.53,155.44,20.0]
[1721114220865,0.79396752,155.52,155.44,20.0]
[1721114221180,6.2894,155.53,155.44,20.0]
[1721114221477,0.79396752,155.52,155.45,1.14802336]
[1721114222245,6.2894,155.53,155.45,38.16]
[1721114222453,0.79396752,155.52,155.46,20.0]
[1721114222648,16.6167,155.51,155.46,20.0]
[1721114222963,0.79396752,155.5,155.46,20.0]
[1721114223273,0.79396752,155.5,155.43,20.0]
[1721114223593,0.79396752,155.5,155.4,6.67094674]
[1721114223751,0.79396752,155.5,155.41,39.44642278]
[1721114224362,0.79396752,155.5,155.41,38.16]
[1721114224677,17.41066752,155.51,155.42,1.28646663]
[1721114224849,17.41066752,155.51,155.42,21.28646663]
[1721114225052,17.41066752,155.51,155.44,38.16]
[1721114225278,17.41066752,155.51,155.45,20.0]
[1721114225974,17.41066752,155.51,155.41,38.16]
[1721114226183,6.99526752,155.5,155.41,38.16]
[1721114226367,6.99526752,155.5,155.42,1.28646411]
[1721114226566,6.99526752,155.5,155.41,38.16]
[1721114227464,6.99526752,155.5,155.42,20.0]
[1721114228161,6.99526752,155.5,155.4,20.0]
[1721114228479,13.42606752,155.5,155.4,20.0]
[1721114228673,13.42606752,155.5,155.39,38.16]
[1721114228674,16.3277,155.49,155.39,38.16]
[1721114228879,0.79396752,155.48,155.39,38.16]
[1721114229382,15.8883,155.46,155.36,38.16]
[1721114229553,0.79396752,155.45,155.36,38.16]
[1721114229754,15.8883,155.46,155.39,38.16]
[1721114229975,15.8883,155.46,155.4,0.38718116]
[1721114230180,15.8883,155.46,155.39,38.16]
[1721114230181,16.68226752,155.46,155.39,38.16]
[1721114230484,16.68226752,155.46,155.4,21.28668387]
[1721114230864,15.8883,155.46,155.4,20.0]
[1721114231384,16.68226752,155.46,155.4,20.0]
[1721114231584,16.68226752,155.46,155.38,20.0]
[1721114231994,0.79396752,155.45,155.38,20.0]
[1721114232287,16.68226752,155.46,155.38,20.0]
[1721114232780,0.79396752,155.45,155.38,20.0]
[1721114233286,6.4339,155.44,155.33,16.3277]
[1721114233482,17.29886752,155.43,155.33,54.4877]
[1721114233657,0.79396752,155.42,155.33,54.4877]
[1721114233975,0.79396752,155.42,155.33,38.16]
[1721114234367,6.1376,155.41,155.33,38.16]
[1721114234571,0.79396752,155.4,155.33,38.16]
[1721114235795,15.5614,155.39,155.33,38.16]
[1721114235993,0.79396752,155.38,155.33,38.16]
[1721114236583,16.35536752,155.39,155.33,38.16]
[1721114236987,15.5614,155.39,155.33,38.16]
[1721114237496,15.5614,155.39,155.34,20.0]
[1721114237876,0.79396752,155.38,155.34,20.0]
[1721114238075,6.4898,155.37,155.31,1.28726653]
[1721114238308,0.79396752,155.36,155.3,0.7943647]
[1721114238792,0.79396752,155.36,155.31,1.28762925]
[1721114239588,6.4898,155.37,155.31,1.28762925]
[1721114239589,6.4898,155.37,155.31,39.44762925]
[1721114239798,6.4898,155.37,155.32,20.0]
[1721114239965,6.4898,155.37,155.33,1.28733636]
[1721114240873,6.4898,155.37,155.35,38.16]
[1721114241065,6.4898,155.37,155.36,20.0]
[1721114241269,15.5614,155.39,155.36,20.0]
[1721114242068,0.79396752,155.38,155.33,20.0]
[1721114242371,16.35536752,155.39,155.33,20.0]
[1721114242899,15.5614,155.39,155.33,20.0]
[1721114243602,15.5614,155.39,155.35,38.16]
[1721114243892,15.5614,155.39,155.36,20.0]
[1721114245078,15.5614,155.39,155.34,38.16]
[1721114245394,15.5614,155.39,155.35,20.0]
[1721114245772,6.2583,155.41,155.37,38.16]
[1721114245969,6.2583,155.41,155.38,21.28676064]
[1721114246173,6.2583,155.41,155.38,20.0]
[1721114246773,6.2583,155.41,155.39,1.28685342]
[1721114247998,15.3909,155.43,155.39,1.28685342]
[1721114248172,15.3909,155.43,155.38,20.0]
[1721114249697,15.3909,155.43,155.39,1.28674514]
[1721114250605,15.3909,155.43,155.38,20.0]
[1721114250815,6.2766,155.45,155.4,38.16]
[1721114251096,15.6088,155.47,155.43,38.16]
[1721114251297,15.6088,155.47,155.44,21.28625426]
[1721114251509,15.6088,155.47,155.44,20.0]
[1721114251882,15.6088,155.47,155.45,1.28645074]
[1721114252087,15.6088,155.47,155.44,20.0]
[1721114252989,0.79396752,155.46,155.44,20.0]
[1721114253189,0.79396752,155.46,155.38,20.0]
[1721114256001,16.40276752,155.47,155.39,1.28664266]
[1721114256189,16.40276752,155.47,155.38,20.0]
[1721114256804,15.6088,155.47,155.38,20.0]
[1721114257000,0.79396752,155.46,155.38,20.0]
[1721114257308,15.6088,155.47,155.38,20.0]
[1721114257881,15.6088,155.47,155.42,38.16]
[1721114258108,15.6088,155.47,155.43,20.0]
[1721114259591,6.302,155.49,155.45,38.16]
[1721114259911,6.302,155.49,155.46,20.0]
[1721114260811,6.302,155.49,155.47,1.2862318]
[1721114261013,6.302,155.49,155.46,20.0]
[1721114262192,0.79396752,155.48,155.4,58.16]
[1721114262584,0.79396752,155.48,155.4,38.16]
[1721114263507,16.009,155.47,155.36,38.16]
[1721114263807,16.80296752,155.47,155.37,1.28684361]
[1721114263991,16.009,155.47,155.4,38.16]
[1721114264189,16.009,155.47,155.41,1.28652821]
[1721114264501,16.009,155.47,155.43,38.16]
[1721114264713,6.302,155.49,155.44,21.2862799]
[1721114266689,6.302,155.49,155.44,20.0]
[1721114267008,15.1072,155.51,155.44,20.0]
[1721114267909,15.1072,155.51,155.45,1.28617964]
[1721114268317,15.1072,155.51,155.44,20.0]
[1721114268318,0.79396752,155.5,155.44,20.0]
[1721114270787,0.79396752,155.5,155.43,20.0]
[1721114270989,0.79396752,155.5,155.42,38.16]
[1721114271520,0.79396752,155.5,155.43,1.28645341]
[1721114271686,0.79396752,155.5,155.37,15.1072]
[1721114271893,0.79396752,155.5,155.42,38.16]
[1721114272589,6.0165,155.49,155.43,20.0]
[1721114272820,0.79396752,155.48,155.4,21.28666442]
[1721114273702,0.79396752,155.48,155.4,20.0]
[1721114276104,0.79396752,155.48,155.41,1.28650445]
[1721114276308,0.79396752,155.48,155.4,20.0]
[1721114276510,0.79396752,155.48,155.41,0.39017883]
[1721114276734,0.79396752,155.48,155.41,1.28650665]
[1721114277902,0.79396752,155.48,155.42,38.16]
[1721114278132,0.79396752,155.48,155.43,21.28647964]
[1721114278305,0.79396752,155.48,155.43,20.0]
[1721114278723,0.79396752,155.48,155.42,20.0]
[1721114279231,6.0165,155.49,155.42,20.0]
[1721114279393,0.79396752,155.48,155.42,20.0]
[1721114279824,6.0165,155.49,155.42,20.0]
[1721114279825,6.0165,155.49,155.43,1.28648927]
[1721114280199,0.79396752,155.48,155.42,20.0]
[1721114280602,6.81046752,155.49,155.43,1.28643131]
[1721114280827,0.79396752,155.48,155.42,20.0]
[1721114281329,6.81046752,155.49,155.42,20.0]
[1721114281646,6.0165,155.49,155.44,38.16]
[1721114281930,15.1072,155.51,155.45,21.28361441]
[1721114282500,15.1072,155.51,155.47,38.16]
[1721114282700,6.2651,155.53,155.48,21.28571034]
[1721114282901,6.2651,155.53,155.49,1.28562765]
[1721114284110,15.6538,155.55,155.49,1.28562765]
[1721114284311,15.6538,155.55,155.5,38.16]
[1721114284521,15.6538,155.55,155.51,21.28589422]
[1721114284833,15.6538,155.55,155.52,1.28585025]
[1721114285406,15.6538,155.55,155.51,20.0]
[1721114285842,0.79396752,155.54,155.51,20.0]
[1721114286050,16.44776752,155.55,155.51,20.0]
[1721114286333,15.6538,155.55,155.51,21.28594336]
[1721114286731,15.6538,155.55,155.51,20.0]
[1721114287104,0.79396752,155.54,155.51,20.0]
[1721114287631,0.79396752,155.54,155.48,20.0]
[1721114287829,16.44776752,155.55,155.48,20.0]
[1721114288036,0.79396752,155.54,155.48,20.0]
[1721114288411,16.44776752,155.55,155.49,1.28604151]
[1721114289129,15.6538,155.55,155.49,1.28604151]
[1721114289535,15.6538,155.55,155.48,20.0]
[1721114290018,15.6538,155.55,155.5,38.16]
[1721114290227,15.6538,155.55,155.51,21.28575372]
[1721114290546,15.6538,155.55,155.51,20.0]
[1721114290842,15.6538,155.55,155.52,1.28577493]
[1721114291410,15.6538,155.55,155.51,20.0]
[1721114291637,0.79396752,155.54,155.51,20.0]
[1721114291829,15.6538,155.55,155.45,20.0]
[1721114292033,15.6538,155.55,155.48,38.16]
[1721114292233,15.6538,155.55,155.49,21.28584698]
[1721114292944,0.79396752,155.54,155.49,20.0]
[1721114293312,7.22316752,155.54,155.44,38.16]
[1721114293542,7.22316752,155.54,155.4,6.4291]
[1721114293543,6.6282,155.53,155.39,22.40394264]
[1721114293752,16.47836752,155.52,155.41,38.16]
[1721114293913,0.79396752,155.51,155.41,38.16]
[1721114296430,16.1223,155.48,155.36,38.16]
[1721114296614,0.79396752,155.47,155.36,38.16]
[1721114296820,0.79396752,155.47,155.37,1.28681923]
[1721114297236,0.79396752,155.47,155.36,38.16]
[1721114298309,6.1567,155.46,155.36,38.16]
[1721114298515,15.1207,155.44,155.36,38.16]
[1721114298738,15.1207,155.44,155.28,305.0234]
[1721114298739,0.79396752,155.43,155.33,38.16]
[1721114298936,0.79396752,155.42,155.33,38.16]
[1721114300030,0.79396752,155.42,155.34,20.0]
[1721114300228,15.1207,155.44,155.34,20.0]
[1721114300229,0.79396752,155.43,155.34,20.0]
[1721114300445,0.79396752,155.42,155.34,20.0]
[1721114301427,0.79396752,155.41,155.34,20.0]
[1721114301624,0.79396752,155.43,155.34,20.0]
[1721114302028,0.79396752,155.43,155.35,1.28689877]
[1721114302255,0.79396752,155.43,155.34,20.0]
[1721114302787,15.91466752,155.44,155.36,38.16]
[1721114302929,15.91466752,155.44,155.37,20.0]
[1721114303722,15.1207,155.44,155.37,20.0]
[1721114304141,0.79396752,155.43,155.37,20.0]
[1721114304757,0.79396752,155.43,155.38,1.28687316]
[1721114305133,15.91466752,155.44,155.38,1.28687316]
[1721114305450,15.1207,155.44,155.39,38.16]
[1721114305629,15.1207,155.44,155.4,21.28662839]
[1721114306148,6.1567,155.46,155.42,38.16]
[1721114306356,6.1567,155.46,155.43,21.28647467]
[1721114307045,15.7288,155.48,155.43,21.28647467]
[1721114307242,6.3068,155.5,155.45,38.16]
[1721114307437,6.3068,155.5,155.46,21.28614792]
[1721114308560,6.3068,155.5,155.46,20.0]
[1721114312981,16.6527,155.53,155.48,38.16]
[1721114313157,16.6527,155.53,155.49,21.28590598]
[1721114316371,16.6527,155.53,155.49,20.0]
[1721114321893,16.6527,155.53,155.5,1.28588004]
[1721114322095,21.7442,155.61,155.51,39.44580059]
[1721114322268,0.79396752,155.6,155.54,38.16]
[1721114322466,21.7442,155.61,155.55,20.0]
[1721114322703,21.7442,155.61,155.56,1.28535171]
[1721114323176,21.7442,155.61,155.55,20.0]
[1721114323576,21.7442,155.61,155.56,1.28537306]
[1721114323879,21.7442,155.61,155.55,20.0]
[1721114324282,21.7442,155.61,155.56,1.28538314]
[1721114324888,21.7442,155.61,155.55,20.0]
[1721114325988,21.7442,155.61,155.56,1.28537484]
[1721114326696,21.7442,155.61,155.57,38.16]
[1721114326998,21.7442,155.61,155.58,20.0]
[1721114327203,0.79396752,155.6,155.58,20.0]
[1721114327566,21.7442,155.61,155.55,20.0]
[1721114328077,21.7442,155.61,155.56,1.28533787]
[1721114328276,21.7442,155.61,155.57,38.16]
[1721114328481,21.7442,155.61,155.58,21.28517263]
[1721114329879,22.6477,155.65,155.58,20.0]
[1721114330113,22.6477,155.65,155.6,38.16]
[1721114330402,0.79396752,155.64,155.61,20.0]
[1721114331269,22.6477,155.65,155.61,21.28513269]
[1721114331905,22.6477,155.65,155.61,20.0]
[1721114332492,0.79396752,155.64,155.61,20.0]
[1721114333612,7.21906752,155.64,155.5,16.6438]
[1721114333910,7.21906752,155.64,155.52,38.16]
[1721114333911,0.79396752,155.64,155.52,38.16]
[1721114334200,6.548,155.6,155.46,15.8469]
[1721114334407,6.548,155.6,155.45,6.3968]
[1721114334408,0.79396752,155.59,155.48,38.16]
[1721114335079,0.79396752,155.59,155.49,0.83495419]
[1721114335276,0.79396752,155.59,155.51,38.16]
[1721114335484,0.79396752,155.59,155.52,0.83479312]
[1721114335691,0.79396752,155.59,155.53,1.28561619]
[1721114336496,7.34196752,155.6,155.53,1.28561619]
[1721114336711,7.34196752,155.6,155.52,20.0]
[1721114338205,7.34196752,155.6,155.53,1.28562103]
[1721114338404,7.34196752,155.6,155.52,20.0]
[1721114340208,7.34196752,155.6,155.51,20.0]
[1721114340387,7.34196752,155.6,155.52,1.28584524]
[1721114340716,7.34196752,155.6,155.51,21.28581636]
[1721114340880,7.34196752,155.6,155.51,1.28581636]
[1721114341081,7.34196752,155.6,155.47,38.16]
[1721114341387,13.76876752,155.6,155.47,38.16]
[1721114341599,7.34196752,155.6,155.48,1.28595323]
[1721114341887,7.34196752,155.6,155.5,38.16]
[1721114342294,7.34196752,155.6,155.51,1.28575718]
[1721114342481,7.34196752,155.6,155.53,38.16]
[1721114342695,7.34196752,155.6,155.54,21.28554452]
[1721114342910,7.34196752,155.6,155.52,38.16]
[1721114343104,7.34196752,155.6,155.55,20.0]
[1721114343683,7.34196752,155.6,155.53,20.0]
[1721114344911,6.548,155.6,155.55,38.16]
[1721114345113,6.548,155.6,155.56,21.28463878]
[1721114345308,6.548,155.6,155.56,20.0]
[1721114345519,6.548,155.6,155.57,1.28530859]
[1721114345808,6.548,155.6,155.58,1.28532297]
[1721114346214,7.34196752,155.6,155.56,20.0]
[1721114347019,7.34196752,155.6,155.53,20.0]
[1721114347702,7.34196752,155.6,155.49,38.16]
[1721114348783,13.76896752,155.6,155.49,38.16]
[1721114348987,13.76866752,155.6,155.49,38.16]
[1721114349198,15.4572,155.59,155.49,38.16]
[1721114349514,0.79396752,155.58,155.49,38.16]
[1721114349713,0.79396752,155.57,155.49,38.16]
[1721114350016,0.79396752,155.57,155.44,6.64944619]
[1721114350245,6.4292,155.54,155.44,6.64944619]
[1721114350392,0.79396752,155.53,155.42,38.16]
[1721114351394,0.79396752,155.55,155.45,38.16]
[1721114351598,0.79396752,155.54,155.46,21.28617896]
[1721114351798,0.79396752,155.54,155.46,1.28617896]
[1721114352118,0.79396752,155.54,155.46,1.28617347]
[1721114352300,0.79396752,155.55,155.45,38.16]
[1721114352689,0.79396752,155.55,155.48,38.16]
[1721114352886,0.79396752,155.55,155.49,1.28591317]
[1721114353091,0.79396752,155.55,155.48,38.16]
[1721114353308,0.79396752,155.55,155.49,20.0]
[1721114353716,0.79396752,155.54,155.49,20.0]
[1721114354024,0.79396752,155.54,155.46,20.0]
[1721114355229,0.79396752,155.54,155.42,38.16]
[1721114356294,0.79396752,155.54,155.32,22.2342]
[1721114356295,6.6617,155.5,155.32,22.2342]
[1721114356496,16.3961,155.48,155.37,38.16]
[1721114356807,0.79396752,155.47,155.37,38.16]
[1721114357411,22.7213,155.46,155.37,38.16]
[1721114357609,0.79396752,155.45,155.34,61.20934252]
[1721114357922,0.79396752,155.45,155.34,44.81324252]
[1721114358291,0.79396752,155.45,155.34,6.65324252]
[1721114359131,0.79396752,155.45,155.33,42.98]
[1721114360114,0.79396752,155.45,155.34,1.28701067]
[1721114360345,0.79396752,155.45,155.34,20.0]
[1721114360915,0.79396752,155.45,155.31,62.98]
[1721114361125,0.79396752,155.45,155.31,69.63537256]
[1721114361639,16.4212,155.43,155.3,0.7943647]
[1721114361809,0.79396752,155.42,155.3,0.7943647]
[1721114365134,16.4212,155.43,155.36,42.98]
[1721114365351,16.4212,155.43,155.37,21.28671001]
[1721114365508,16.4212,155.43,155.37,20.0]
[1721114366437,0.79396752,155.42,155.33,42.98]
[1721114366647,0.79396752,155.42,155.31,5.83228394]
[1721114366955,0.79396752,155.42,155.3,43.7743647]
[1721114367451,28.261,155.41,155.3,0.7943647]
[1721114367630,0.79396752,155.4,155.3,0.7943647]
[1721114367811,0.79396752,155.39,155.3,0.7943647]
[1721114370241,6.6257,155.37,155.3,0.7943647]
[1721114370542,0.79396752,155.36,155.3,0.7943647]
[1721114370752,0.79396752,155.35,155.3,0.7943647]
[1721114371441,16.489,155.34,155.3,0.7943647]
[1721114371630,0.79396752,155.33,155.3,0.7943647]
[1721114371814,0.79396752,155.32,155.3,0.7943647]
[1721114372945,0.79396752,155.31,155.3,0.7943647]
[1721114373113,16.489,155.34,155.3,0.7943647]
[1721114373114,0.79396752,155.33,155.3,0.7943647]
[1721114373317,16.489,155.34,155.3,0.7943647]
[1721114373318,0.79396752,155.32,155.3,0.7943647]
[1721114373754,0.79396752,155.32,155.22,20.0]
[1721114374144,0.79396752,155.32,155.21,6.66042056]
[1721114374145,15.3346,155.3,155.21,6.66042056]
[1721114374332,0.79396752,155.29,155.15,32.14020211]
[1721114375471,7.23386752,155.29,155.15,32.14020211]
[1721114375755,6.4665,155.28,155.15,32.14020211]
[1721114375934,0.79396752,155.27,155.15,32.14020211]
[1721114376133,0.79396752,155.26,155.15,32.14020211]
[1721114376327,16.5532,155.25,155.16,52.23042718]
[1721114376530,0.79396752,155.24,155.17,1.28873449]
[1721114376834,0.79396752,155.23,155.15,32.14020211]
[1721114377356,0.95380985,155.18,155.15,32.14020211]
[1721114377657,0.95380985,155.18,155.16,33.51917715]
[1721114379054,0.95380985,155.17,155.15,32.14020211]
[1721114380234,0.95380985,155.17,155.14,0.7943647]
[1721114380465,0.95380985,155.16,155.14,0.7943647]
[1721114381756,0.95380985,155.15,155.14,0.7943647]
[1721114383951,16.5532,155.25,155.15,10.0]
[1721114384175,6.3157,155.28,155.18,42.98]
[1721114384350,6.3157,155.28,155.19,20.0]
[1721114384967,6.3157,155.28,155.16,20.0]
[1721114385880,6.3157,155.28,155.19,42.98]
[1721114386082,6.3157,155.28,155.2,21.25994931]
[1721114386381,16.1541,155.3,155.22,42.98]
[1721114386581,16.1541,155.3,155.23,21.2611882]
[1721114386750,16.1541,155.3,155.24,1.28781615]
[1721114386957,6.0039,155.32,155.25,42.98]
[1721114387173,6.0039,155.32,155.26,21.28763634]
[1721114387381,6.0039,155.32,155.27,1.28763465]
[1721114388001,6.1802,155.37,155.28,42.98]
[1721114388157,6.1802,155.37,155.29,21.28742631]
[1721114388489,0.79396752,155.42,155.31,42.98]
[1721114388659,0.79396752,155.42,155.32,21.2871837]
[1721114388988,0.79396752,155.42,155.33,1.28718358]
[1721114389392,0.79396752,155.44,155.32,20.0]
[1721114389596,0.79396752,155.44,155.33,1.28719997]
[1721114390589,0.79396752,155.44,155.32,20.0]
[1721114392177,0.79396752,155.44,155.34,42.98]
[1721114392393,6.0982,155.45,155.35,31.2852099]
[1721114392690,6.0982,155.45,155.36,1.28512717]
[1721114393098,6.0982,155.45,155.37,42.98]
[1721114393387,6.89216752,155.45,155.38,21.28670478]
[1721114393768,6.0982,155.45,155.38,21.28670478]
[1721114393974,6.89216752,155.45,155.38,20.0]
[1721114394968,6.4697,155.49,155.38,20.0]
[1721114395164,0.79396752,155.48,155.39,1.28657949]
[1721114395384,0.79396752,155.48,155.38,20.0]
[1721114395768,0.79396752,155.48,155.39,1.28625011]
[1721114395963,0.79396752,155.48,155.38,20.0]
[1721114396375,0.79396752,155.48,155.39,0.78921377]
[1721114396585,0.79396752,155.48,155.4,1.28666932]
[1721114397099,0.79396752,155.48,155.38,20.0]
[1721114397304,0.79396752,155.48,155.35,20.0]
[1721114397682,0.79396752,155.48,155.36,1.28690132]
[1721114397903,0.79396752,155.48,155.35,20.0]
[1721114398193,0.79396752,155.48,155.37,42.98]
[1721114398400,0.79396752,155.48,155.38,20.6976953]
[1721114398577,0.79396752,155.48,155.38,20.0]
[1721114399007,0.79396752,155.48,155.39,1.1106441]
[1721114399597,6.4697,155.49,155.4,42.98]
[1721114399780,6.4697,155.49,155.41,21.05913397]
[1721114399983,15.5384,155.5,155.43,42.98]
[1721114400284,15.5384,155.5,155.44,21.28628651]
[1721114400693,0.79396752,155.53,155.44,21.28628651]
[1721114401415,0.79396752,155.53,155.44,20.0]
[1721114401584,6.4305,155.51,155.4,42.98]
[1721114401782,0.79396752,155.5,155.37,42.98]
[1721114402609,0.79396752,155.5,155.38,1.28678301]
[1721114402809,0.79396752,155.53,155.38,1.28678301]
[1721114402980,45.79396752,155.53,155.37,42.98]
[1721114403185,0.79396752,155.53,155.38,1.28677345]
[1721114404096,0.79396752,155.53,155.4,10.0]
[1721114404312,0.79396752,155.53,155.41,20.0]
[1721114405581,0.79396752,155.53,155.43,42.98]
[1721114405779,0.79396752,155.53,155.44,20.0]
[1721114405981,7.22376752,155.53,155.44,20.0]
[1721114406207,6.4302,155.52,155.44,20.0]
[1721114406391,0.79396752,155.51,155.38,20.0]
[1721114406917,7.22446752,155.51,155.36,25.3576]
[1721114407081,0.79396752,155.51,155.34,10.0]
[1721114407292,21.3736,155.49,155.38,0.78373638]
[1721114407485,0.79396752,155.48,155.38,1.28662645]
[1721114407807,21.3736,155.49,155.4,42.98]
[1721114408109,0.79396752,155.48,155.41,21.28644164]
[1721114408408,0.79396752,155.48,155.41,20.0]
[1721114408621,21.3736,155.49,155.41,20.0]
[1721114408793,21.3736,155.49,155.42,1.28474894]
[1721114409300,0.79396752,155.48,155.41,20.0]
[1721114409481,21.3736,155.49,155.42,1.28634219]
[1721114409681,21.3736,155.49,155.43,1.28625944]
[1721114409905,21.3736,155.49,155.41,20.0]
[1721114410323,0.79396752,155.48,155.41,20.0]
[1721114410990,0.79396752,155.48,155.34,10.0]
[1721114411394,0.79396752,155.48,155.36,10.0]
[1721114411704,21.3736,155.49,155.38,11.28668808]
[1721114412016,21.3736,155.49,155.41,42.98]
[1721114412510,15.066,155.53,155.43,10.0]
[1721114412825,15.066,155.53,155.44,20.0]
[1721114412826,15.85996752,155.53,155.44,20.0]
[1721114412990,15.85996752,155.53,155.42,20.0]
[1721114414109,15.85996752,155.53,155.43,10.0]
[1721114414307,15.85996752,155.53,155.42,20.0]
[1721114415180,6.43,155.52,155.42,20.0]
[1721114415384,0.79396752,155.51,155.42,20.0]
[1721114415807,0.79396752,155.51,155.43,1.28646501]
[1721114416002,7.22456752,155.51,155.37,42.98]
[1721114416804,0.79396752,155.51,155.37,42.98]